Cogmind - Beta 14 @@@ ROGUE MODE // 2025.03.03 @ 01:21:35 Player: Cogchaaaan Result: Destroyed by D-53 Grenadier with Mini Grenade Launcher Performance ------------- Evolutions (0) 0 Regions Visited (2) 400 Robots Destroyed (34) 170 Value Destroyed (695) 695 Prototype IDs (2) 40 Alien Tech Used (0) 0 Bonus (0) 0 TOTAL SCORE: 1305 Bonus ------- None Cogmind --------- Core Integrity 0/250 Matter 300/300 Energy 100/100 System Corruption 0% Temperature Cool (0) Movement Treading (240) Ox1 Location -10/Mines Parts ------- > --- POWER (1) -------- (None) > --- PROPULSION (2) --- Light Treads Light Treads > --- UTILITY (2) ------ High-capacity Storage Unit Hardened Light Armor Plating > --- WEAPON (2) ------- Small Laser Assault Rifle > --- INVENTORY (20) --- Ion Engine Light Nuclear Core Aluminum Leg Improved Heat Sink Medium Storage Unit Targeting Computer Hardened Light Armor Plating Hardened Light Armor Plating Light Assault Rifle Peak State ------------ > --- POWER ------------ Ion Engine > --- PROPULSION ------- Light Treads Light Treads > --- UTILITY ---------- Small Storage Unit Hardened Light Armor Plating > --- WEAPON ----------- Small Laser Assault Rifle > --- INVENTORY -------- Ion Engine Light Nuclear Core Targeting Computer Hardened Light Armor Plating Hardened Light Armor Plating Small Laser [Rating: 9] Favorites ----------- Power Ion Engine Engine Ion Engine Propulsion Light Treads Treads Light Treads Leg Aluminum Leg Utility Small Storage Unit Device Seismic Detector Storage Small Storage Unit Protection Hardened Light Armor Plating Weapon Assault Rifle Energy Gun Small Laser Ballistic Gun Assault Rifle Build | -11 -10 -10 ------- Run | Yrd Mat Min Slots Evolved . | . . . Power . | . . . Propulsion . | . . . Utility . | . . . Weapon . | . . . Parts Attached 20 | 7 12 1 Power 4 | 1 3 . Engine 4 | 1 3 . Core . | . . . Reactor . | . . . Propulsion 6 | 2 4 . Treads 4 | . 4 . Leg 2 | 2 . . Wheel . | . . . Hover . | . . . Flight . | . . . Utility 4 | 2 2 . Device 1 | 1 . . Storage 2 | 1 1 . Processor . | . . . Hackware . | . . . Protection 1 | . 1 . Artifact . | . . . Weapon 6 | 2 3 1 Energy Gun 2 | . 1 1 Energy Cannon . | . . . Ballistic Gun 4 | 2 2 . Ballistic Cannon . | . . . Launcher . | . . . Special Weapon . | . . . Impact Weapon . | . . . Slashing Weapon . | . . . Piercing Weapon . | . . . Special Melee Weapon . | . . . Unidentified Prototypes . | . . . Parts Lost 9 | . 7 2 Power 3 | . 2 1 Propulsion 2 | . 2 . Utility 1 | . 1 . Weapon 3 | . 2 1 Highest Loss Streak 5 | . 5 1 To Critical Strikes 1 | . . 1 Average Slot Usage (%) 98 | . 98 99 Engine 13 | . 13 14 Treads 24 | . 23 28 Leg 3 | . 4 . Device 5 | . 7 . Storage 14 | . 14 14 Protection 8 | . 6 14 Energy Gun 7 | . 6 13 Ballistic Gun 19 | . 21 14 Peak Build Rating 9 | 7 9 9 Average Rating 8 | 5 8 8 On Entrance 5 | . 7 9 Naked Turns . | . . . Heaviest Build 53 | 12 53 53 Greatest Support 40 | 20 40 40 Greatest Overweight (x) 3 | 3 1 1 Average Overweight (x) . | . . 1 Largest Inventory Capacity 20 | 8 20 20 Average Capacity 13 | 7 11 20 Most Carried 9 | 4 9 9 Average Carried 7 | 3 7 8 Final Capacity 20 | 8 20 20 Final Carried 9 | 4 9 9 Class Distribution -------------------- 100% | Mutant Dominant Class ---------------- Mutant | -10/Materials Mutant | -10/Mines Resources | -11 -10 -10 ----------- Run | Yrd Mat Min Matter Collected 730 | 285 372 73 Remotely . | . . . Salvage Created 937 | 66 734 137 Parts 77 | 5 56 16 Haulers Intercepted 1 | . 1 . Recyclers Shooed . | . . . Parts Field Recycled . | . . . Retrieved Matter . | . . . Parts Self-Destructed . | . . . Prevented . | . . . Kills | -11 -10 -10 ------- Run | Yrd Mat Min Combat Hostiles Destroyed 28 | . 19 9 Guns 27 | . 18 9 Classes Destroyed 8 | 2 6 . Builder 1 | . 1 . Tunneler 1 | 1 . . Hauler 1 | . 1 . Recycler 1 | 1 . . Watcher 2 | . 2 . Swarmer 15 | . 6 9 Grunt 11 | . 11 . Subdweller 2 | . 2 . Best Kill Streak 5 | 2 5 3 Combat Bots Only 4 | . 4 3 Max Kills in Single Turn 2 | 1 2 2 Gunslinging 1 | . . 1 Exploded . | . . . Melee . | . . . Uniques/NPCs Destroyed . | . . . Combat | -11 -10 -10 -------- Run | Yrd Mat Min Hostile Shots Fired 142 | . 112 30 Missed 25 | . 23 2 Damage Taken 1324 | . 1019 305 Core 290 | . 189 101 Absorbed by Shields . | . . . Core Remaining (%) 100 | 100 . . Volleys Fired 100 | 5 73 22 Largest 2 | 2 2 2 Hottest 60 | 40 60 60 Shots Fired 191 | 10 143 38 Gun 191 | 10 143 38 Cannon . | . . . Launcher . | . . . Special . | . . . Kinetic 166 | 10 134 22 Thermal 25 | . 9 16 Explosive . | . . . Electromagnetic . | . . . Robot Hit Streak 17 | 5 17 7 Robot Miss Streak 5 | 1 3 5 Penetration Max . | . . . Secondary Targets 6 | . 4 2 Max Gunslinging Chain 1 | . 1 1 Shots Hit Robots 125 | 7 97 21 Core Hits 57 | 4 43 10 Critical Kills . | . . . Critical Parts Destroyed 3 | 1 2 . Critical Strikes 3 | 1 2 . Destroy 3 | 1 2 . Melee Attacks . | . . . Impact . | . . . Slashing . | . . . Piercing . | . . . Sneak Attacks . | . . . Combat Hostiles . | . . . Follow-up Attacks . | . . . Damage Inflicted 1372 | 82 1044 246 Guns 1371 | 82 1044 245 Cannons . | . . . Explosions . | . . . Melee . | . . . Ramming 1 | . . 1 Kinetic 1214 | 82 973 159 Thermal 157 | . 71 86 Explosive . | . . . Electromagnetic . | . . . Impact . | . . . Slashing . | . . . Piercing . | . . . Highest Corruption . | . . . Average Corruption . | . . . Corruption Purged . | . . . Corruption Blocked . | . . . Overload Shots . | . . . Overflow Damage . | . . . Projectiles . | . . . Explosions . | . . . Melee . | . . . Knockbacks . | . . . Impact . | . . . Kinetic . | . . . Secondary . | . . . Self-Inflicted Damage . | . . . Shots . | . . . Rammed 1 | . . 1 Targets Rammed 1 | . . 1 Kicked . | . . . Crushed . | . . . Highest Temperature 90 | . 63 90 Average Temperature 25 | . 16 39 Received Heat Transfer 450 | . 450 . Siege Activations . | . . . Robots Corrupted . | . . . Combat Hostiles . | . . . Parts Fried . | . . . Impact Corruptions . | . . . Robots Melted . | . . . Combat Hostiles . | . . . Parts Melted 1 | . 1 . Heat Transferred 350 | . 150 200 Parts Sabotaged . | . . . Parts Stolen . | . . . Parts Stripped . | . . . Power Chain Reactions . | . . . Alert | -11 -10 -10 ------- Run | Yrd Mat Min Peak Influence 316 | 10 316 200 Initial 6 | . 6 . Average 111 | 4 107 154 Maximum Alert Level 1 | . 1 1 Low Security (%) 68 | 100 73 42 Level 1 31 | . 26 57 Level 2 . | . . . Level 3 . | . . . Level 4 . | . . . Level 5 . | . . . High Security . | . . . Max Security . | . . . Squads Dispatched 3 | . 3 . Investigation 1 | . 1 . Extermination . | . . . Reinforcement 2 | . 2 . Assault . | . . . Garrison . | . . . Intercept . | . . . Searches Triggered . | . . . Construction Impeded . | . . . Haulers Reinforced . | . . . Active Scanning Responses . | . . . Cargo Convoy Interrupts . | . . . Stealth | -11 -10 -10 --------- Run | Yrd Mat Min Distress Signals 2 | . 1 1 Communications Jammed . | . . . Distress Signals . | . . . Times Spotted 36 | . 26 10 Peak Tracking Total 3 | . 3 3 Tactical Retreats 5 | . 5 . Traps | -11 -10 -10 ------- Run | Yrd Mat Min Traps Triggered 2 | . 2 . Indirectly . | . . . Trap Hack Attempts . | . . . Triggered . | . . . Disarmed . | . . . Reprogrammed . | . . . Reused . | . . . Traps Extracted . | . . . Installed . | . . . Triggered . | . . . Machines | -11 -10 -10 ---------- Run | Yrd Mat Min Machines Disabled . | . . . Max in Single Turn . | . . . Machines Repaired . | . . . Machines Dismantled . | . . . Machines Sabotaged . | . . . Overloaded Fab Kills . | . . . Hacking | -11 -10 -10 --------- Run | Yrd Mat Min Machines Accessed 6 | . 6 . Terminals 5 | . 5 . Fabricators . | . . . Repair Stations . | . . . Recycling Units 1 | . 1 . Scanalyzers . | . . . Garrison Access . | . . . Total Hacks 20 | . 20 . Successful 11 | . 11 . Failed 9 | . 9 . Catastrophic 1 | . 1 . Database Lockouts . | . . . Manual 5 | . 5 . Terminals 18 | . 18 . Fabricators . | . . . Repair Stations . | . . . Recycling Units 2 | . 2 . Scanalyzers . | . . . Garrison Access . | . . . Terminal Hacks 6 | . 6 . Prototype ID Bank 1 | . 1 . Branch Access Points 1 | . 1 . Unreport Threat 1 | . 1 . Locate Traps 1 | . 1 . Zone Layout 2 | . 2 . Fabricator Hacks . | . . . Repair Station Hacks . | . . . Recycling Unit Hacks 2 | . 2 . Retrieve Components 2 | . 2 . Scanalyzer . | . . . Garrison Access Hacks . | . . . Unauthorized Hacks 3 | . 3 . Terminals 3 | . 3 . Botnet 3 | . 3 . Fabricators . | . . . Repair Stations . | . . . Recycling Units . | . . . Scanalyzers . | . . . Garrison Access . | . . . Data Cores Recovered . | . . . Used . | . . . Hacking Detections 5 | . 5 . Full Trace Events 3 | . 3 . Feedback Events . | . . . Feedback Blocked . | . . . Robot Schematics Acquired . | . . . Robots Built . | . . . Authchips . | . . . Time . | . . . Total Robot Build Rating . | . . . Part Schematics Acquired . | . . . Parts Built . | . . . Authchips . | . . . Time . | . . . Total Part Build Rating . | . . . Parts Repaired . | . . . Time . | . . . Parts Recycled . | . . . Recycled Matter . | . . . Retrieved Matter . | . . . Retrieved Components . | . . . Parts Scanalyzed . | . . . Part Schematics Acquired . | . . . Parts Damaged . | . . . Bothacking | -11 -10 -10 ------------ Run | Yrd Mat Min Used RIF Installer . | . . . Robots Hacked . | . . . Non-combat . | . . . Combat . | . . . Robot Hacks Applied . | . . . Relay Couplers Released . | . . . Fabnet Peak Effective % . | . . . Robots Rewired . | . . . Allies Hacked . | . . . Hacks Repelled . | . . . Allies | -11 -10 -10 -------- Run | Yrd Mat Min Total Allies . | . . . Largest Group . | . . . Highest-Rated Group . | . . . Highest-Rated Ally . | . . . Total Orders . | . . . Ally Attacks . | . . . Total Damage . | . . . Kills . | . . . Allies Corrupted . | . . . Allies Melted . | . . . Intel | -11 -10 -10 ------- Run | Yrd Mat Min Robot Analysis Total . | . . . Derelict Logs Recovered . | . . . Drone Launches . | . . . Drone Recoveries . | . . . Exploration | -11 -10 -10 ------------- Run | Yrd Mat Min Turns Passed 1810 | 99 1348 363 Spaces Moved 775 | 54 596 125 Core 12 | 12 . . Treads 599 | . 474 125 Legs 164 | 42 122 . Wheels . | . . . Hover . | . . . Flight . | . . . Fastest Speed 50 | 50 120 240 Average Speed 181 | 123 174 240 Slowest Speed 240 | 200 240 240 Overloaded Moves . | . . . Propulsion Burnouts . | . . . Robots Hopped . | . . . Cave-ins Triggered . | . . . Exploration Rate (%) 41 | 4 94 26 Regions Visited 2 Branch Regions 1 Pre-discovered Areas . | . . . Known Exits Taken 1 | . 1 . Unknown Exits Taken 1 | 1 . . Scrap Searched 1 | . . 1 Spaces Dug . | . . . Terrain Destroyed . | . . . Melee . | . . . Projectile . | . . . AOE . | . . . Terrain Rammed . | . . . Walls Destroyed . | . . . Machines Disabled . | . . . Actions | -11 -10 -10 --------- Run | Yrd Mat Min Total 997 | 74 772 151 Wait 80 | 5 74 1 Move 773 | 53 595 125 Hop . | . . . Pick Up 18 | 4 13 1 Fast Attach 12 | 7 5 . Attach 5 | . 4 1 Detach . | . . . Swap 3 | . 3 . Drop 5 | . 5 . Fire 100 | 5 73 22 Melee . | . . . Ram . | . . . Kick . | . . . Crush 1 | . . 1 Escape Stasis . | . . . Rewire . | . . . Trap . | . . . Miscellaneous . | . . . Route ------- -11/Scrapyard -10/Materials (discovered 4 exits: [*Mat x3] / *Min) -10/Mines (discovered 1 exit: [*Mat]) History --------- Turn | Location | Event 20 | -11/Scrapyard | Discovered new exit (range 15) 100 | -11/Scrapyard | Entered Materials 310 | -10/Materials | Build established: Mutant 582 | -10/Materials | Discovered new exit (range 7) 610 | -10/Materials | Discovered new exit (range 14) 775 | -10/Materials | Core integrity fell below 50% 800 | -10/Materials | Derelicts attacked the area 820 | -10/Materials | Identified exit to Mines 826 | -10/Materials | Lost 5 parts (1p2n1u1w) 899 | -10/Materials | Discovered new exit (range 10) 1178 | -10/Materials | Discovered new exit (range 3) 1448 | -10/Materials | Entered Mines 1595 | -10/Mines | Core integrity fell below 20% 1609 | -10/Mines | Discovered new exit (range 11) 1783 | -10/Mines | Assembled infested the area 1788 | -10/Mines | Assisted by a Guerilla fighting off Assembled 1811 | -10/Mines | Destroyed by D-53 Grenadier with Mini Grenade Launcher Last Messages --------------- 01691_ U-05 Engineer builds a Wall. 01693_ T-07 Excavator is excavating. 01722_ K-01 Serf collects debris. 01724_ Searching scrap... 01724_ Found Datajack. 01724_ Found 39 Matter. 01746_ K-01 Serf collects debris. 01783_ ALERT: Infestation in the mines, dispatching Demolisher response squad. 01788_ A derelict emerges from the shadows: "You need to get out of here! I've been tracking a group of Assembled to figure out where they're coming from, and they're closing on this area, come on!" 01789_ K-01 Serf collects debris. 01810_ C-30 ARC bursts open, deploying its payload. 01810_ D-53 Grenadier unfolds itself. 01811_ Ion Engine destroyed. 01811_ R-06 Scavenger destroyed. Map ----- +----------------------------------------------------+ | ?????????????????????????????????????????????????? | | ?????????????????????????????????????????????????? | | ?????????????????????????????????????????????????? | | ?????????????????????????????????????????????????? | | ?????????????????????????????????????????????????? | | ?????????????????????????????????????????????????? | | ?????????????????????????????????????????????????? | | ?????????????????????????????????????????????????? | | ?????????????????????????????????????????????????? | | ?????????????????????????????????????????????????? | | ?????????????????????###?????????????????????????? | | ????????????????????? #?????????????????????????? | | ?????????????????????# #?????????????????????????? | | ?????????????????????# #?????????????????????????? | | ?????????????????????# #?????????????????????????? | | ?????????????????????# #?????????????????????????? | | ????????????????????## #?????????????????????????? | | ???????????????????## t##????????????????????????? | | ???????????????????# r #######??????????????????? | | ???????????????????# ## ##?????????????????? | | ???????????????????## ##????????????????? | | ????????????????????## ####?????????????? | | ?????????????????????# ##????????????? | | ?????????????????????# == k #????????????? | | ?????????????????????# =%* #????????????? | | ?????????????????????# @= d ### ##????????????? | | ?????????????????????# #??###?????????????? | | ?????????????????????# ## % ##??????????????????? | | ???????????????????? #?#d #???????????????????? | | ?????????????# ? #####?# ##???????????????????? | | ?????????????# ####### ####?????????????????? | | ?????????????# #?????????????????? | | ?????????????? """ /% #?????????????????? | | ????????????? """ ######## #?????????????????? | | ????????????????"""??????????# ##????????????????? | | ????????????????????????????## #####????????????? | | ???????????????????????????## #????????????? | | ??????????????????????????## ## #?####???????? | | ?????????????????????????## ## ## #???????? | | ?????????????????????????# ## # #???????? | | ?????????????????????????# #???????? | | ?????????????????????????## ##???????# | | ??????????????????????????## ###########????????# | | ???????????????????????????# #??????#########???# | | ???????????????????????????# #??????# #???# | | ???????????????????????????# #??????# #???# | | ???????????????????????????# #??????# """ #???# | | ???????????????????????????# #??????# """ ##### | | ???????????????????????????# #??????# """%%* [ | | ???????????????????????????# ######## =##### | +----------------------------------------------------+ Best States ------------- Heat Dissipation 25 Energy Generation 10 Energy Capacity 250 Matter Stores 300 Matter Capacity 300 Sight Range 16 Terrain Scan Density 10 Armor Coverage 150 Evasion (%) 55 Recoil Reduction 2 Item Schematics ----------------- None Robot Schematics ------------------ None Fabricated ------------ Nothing Alien Tech Used ----------------- None Achievements -------------- None Challenges ------------ None Game ------ Seed RemoteDynamicSuite Manual? 0 Play Time 00:11:27 Cumulative 134.9 hours Start 2025.03.03 @ 01:11:18 End 2025.03.03 @ 01:21:35 Sessions 1 Manual Loads 0 Difficulty Rogue Special Mode None Game No. 89 Rogue 89 Adventurer 0 Explorer 0 Win Type - Total 10 Types 10/0/0/0/0/0/0/0/0 Lore% 32 Gallery% 49 Achievement% 48 Wizard Run 0 Options --------- Layout 1 ASCII 0 Keyboard 0 Movement Arrows Keybinds 0 Fullscreen 2 Font 24/Terminus Map View 50x35 Zoom Use 0% Tactical HUD 1 Map Filters NONE Filters NONE Steam 0 RUN: 3d89b7e9-c8d5-4438-952f-95c79f48ec6c